Cogmind - Beta 13 @@@ ROGUE MODE // 2024.04.14 @ 00:43:05 Player: SovietPaperclip Result: Self-destructed Performance ------------- Evolutions (1) 500 Regions Visited (2) 400 Robots Destroyed (23) 115 Value Destroyed (553) 553 Prototype IDs (0) 0 Alien Tech Used (0) 0 Bonus (0) 0 TOTAL SCORE: 1568 Bonus ------- None Cogmind --------- Core Integrity 310/400 Matter 209/300 Energy 85/100 System Corruption 0% Temperature Cool (0) Movement Treading (240) Ox1 Location -9/Materials Parts ------- > --- POWER (1) -------- (None) > --- PROPULSION (3) --- Light Treads Light Treads Light Treads > --- UTILITY (3) ------ Huge Storage Unit > --- WEAPON (2) ------- Assault Rifle Grenade Launcher > --- INVENTORY (25) --- Light Ion Engine Hacking Suite Hacking Suite Assault Rifle Assault Rifle Peak State ------------ > --- POWER ------------ Light Ion Engine > --- PROPULSION ------- Light Treads Light Treads > --- UTILITY ---------- Small Storage Unit High-capacity Storage Unit > --- WEAPON ----------- Assault Rifle Assault Rifle > --- INVENTORY -------- Light Ion Engine [Rating: 7] Favorites ----------- Power Light Ion Engine Engine Light Ion Engine Propulsion Light Treads Treads Light Treads Utility High-capacity Storage Unit Storage High-capacity Storage Unit Weapon Assault Rifle Ballistic Gun Assault Rifle Launcher Grenade Launcher Build | -11 -10 -9 ------- Run | Yrd Mat Mat Slots Evolved 2 | . . 2 Power . | . . . Propulsion 1 | . . 1 Utility 1 | . . 1 Weapon . | . . . Parts Attached 13 | 6 1 6 Power 1 | 1 . . Engine 1 | 1 . . Core . | . . . Reactor . | . . . Propulsion 3 | 2 . 1 Treads 3 | 2 . 1 Leg . | . . . Wheel . | . . . Hover . | . . . Flight . | . . . Utility 3 | 1 1 1 Device . | . . . Storage 3 | 1 1 1 Processor . | . . . Hackware . | . . . Protection . | . . . Artifact . | . . . Weapon 6 | 2 . 4 Energy Gun . | . . . Energy Cannon . | . . . Ballistic Gun 4 | 2 . 2 Ballistic Cannon . | . . . Launcher 2 | . . 2 Special Weapon . | . . . Impact Weapon . | . . . Slashing Weapon . | . . . Piercing Weapon . | . . . Special Melee Weapon . | . . . Unidentified Prototypes . | . . . Parts Lost 2 | . . 2 Power 1 | . . 1 Propulsion . | . . . Utility . | . . . Weapon 1 | . . 1 Highest Loss Streak 2 | . . 2 To Critical Strikes . | . . . Average Slot Usage (%) 73 | . 85 59 Engine 9 | . 14 4 Treads 25 | . 28 22 Storage 12 | . 14 11 Ballistic Gun 24 | . 28 20 Naked Turns . | . . . Heaviest Build 87 | 12 47 87 Greatest Support 40 | 40 40 40 Greatest Overweight (x) 2 | . 1 2 Average Overweight (x) . | . . 1 Largest Inventory Capacity 25 | 8 20 25 Average Capacity 20 | 6 18 24 Most Carried 7 | 5 6 7 Average Carried 3 | 1 2 5 Final Capacity 25 | 8 20 25 Final Carried 6 | 1 6 5 Class Distribution -------------------- 100% | Mutant Dominant Class ---------------- Mutant | -10/Materials Mutant | -9/Materials Resources | -11 -10 -9 ----------- Run | Yrd Mat Mat Matter Collected 536 | 204 186 146 Remotely . | . . . Salvage Created 646 | . 257 389 Parts 50 | . 16 34 Haulers Intercepted 2 | . 1 1 Recyclers Shooed 1 | . . 1 Parts Field Recycled . | . . . Retrieved Matter . | . . . Parts Self-Destructed . | . . . Prevented . | . . . Kills | -11 -10 -9 ------- Run | Yrd Mat Mat Combat Hostiles Destroyed 16 | . 4 12 Guns 8 | . 4 4 AOE 8 | . . 8 Classes Destroyed 8 | . 3 5 Worker 1 | . . 1 Builder 1 | . . 1 Hauler 2 | . 1 1 Operator 2 | . 2 . Watcher 1 | . . 1 Swarmer 3 | . . 3 Grunt 12 | . 4 8 Duelist 1 | . . 1 Best Kill Streak 6 | . 2 6 Combat Bots Only 4 | . 2 4 Max Kills in Single Turn 2 | . 1 2 Gunslinging . | . . . Exploded 2 | . . 2 Melee . | . . . Uniques/NPCs Destroyed . | . . . Combat | -11 -10 -9 -------- Run | Yrd Mat Mat Hostile Shots Fired 68 | . 26 42 Missed 10 | . 3 7 Damage Taken 705 | . 248 457 Core 144 | . 54 90 Absorbed by Shields . | . . . Core Remaining (%) 89 | 100 78 . Volleys Fired 45 | . 20 25 Largest 2 | . 2 2 Hottest 50 | . 40 50 Shots Fired 86 | . 40 46 Gun 79 | . 40 39 Cannon . | . . . Launcher 7 | . . 7 Special . | . . . Kinetic 79 | . 40 39 Thermal . | . . . Explosive 7 | . . 7 Electromagnetic . | . . . Robot Hit Streak 9 | . 9 8 Robot Miss Streak 3 | . 2 3 Penetration Max . | . . . Secondary Targets . | . . . Shots Hit Robots 58 | . 31 27 Core Hits 41 | . 14 27 Critical Kills 1 | . . 1 Critical Parts Destroyed 1 | . . 1 Critical Strikes 2 | . . 2 Destroy 2 | . . 2 Melee Attacks . | . . . Impact . | . . . Slashing . | . . . Piercing . | . . . Sneak Attacks . | . . . Combat Hostiles . | . . . Follow-up Attacks . | . . . Damage Inflicted 1379 | . 439 940 Guns 792 | . 439 353 Cannons . | . . . Explosions 587 | . . 587 Melee . | . . . Ramming . | . . . Kinetic 792 | . 439 353 Thermal . | . . . Explosive 587 | . . 587 Electromagnetic . | . . . Impact . | . . . Slashing . | . . . Piercing . | . . . Highest Corruption . | . . . Average Corruption . | . . . Corruption Purged . | . . . Corruption Blocked . | . . . Overload Shots . | . . . Overflow Damage . | . . . Projectiles . | . . . Explosions . | . . . Melee . | . . . Knockbacks . | . . . Impact . | . . . Kinetic . | . . . Secondary . | . . . Self-Inflicted Damage 36 | . . 36 Shots 1 | . . 1 Rammed . | . . . Targets Rammed . | . . . Kicked . | . . . Crushed . | . . . Highest Temperature 5 | . 5 . Average Temperature 5 | . 5 . Received Heat Transfer 264 | . 138 126 Siege Activations . | . . . Robots Corrupted . | . . . Combat Hostiles . | . . . Parts Fried . | . . . Impact Corruptions . | . . . Robots Melted . | . . . Combat Hostiles . | . . . Parts Melted . | . . . Heat Transferred . | . . . Parts Sabotaged . | . . . Parts Stolen . | . . . Parts Stripped . | . . . Power Chain Reactions . | . . . Alert | -11 -10 -9 ------- Run | Yrd Mat Mat Peak Influence 381 | . 162 381 Initial . | . . . Average 65 | . 32 117 Maximum Alert Level 1 | . . 1 Low Security (%) 90 | 100 100 76 Level 1 9 | . . 23 Level 2 . | . . . Level 3 . | . . . Level 4 . | . . . Level 5 . | . . . High Security . | . . . Max Security . | . . . Squads Dispatched 4 | . 2 2 Investigation . | . . . Extermination . | . . . Reinforcement 4 | . 2 2 Assault . | . . . Garrison . | . . . Intercept . | . . . Searches Triggered . | . . . Construction Impeded . | . . . Haulers Reinforced . | . . . Active Scanning Responses . | . . . Cargo Convoy Interrupts . | . . . Stealth | -11 -10 -9 --------- Run | Yrd Mat Mat Distress Signals 2 | . . 2 Communications Jammed . | . . . Distress Signals . | . . . Times Spotted 21 | . 6 15 Peak Tracking Total 5 | . 2 5 Tactical Retreats . | . . . Traps | -11 -10 -9 ------- Run | Yrd Mat Mat Traps Triggered . | . . . Indirectly . | . . . Trap Hack Attempts . | . . . Triggered . | . . . Disarmed . | . . . Reprogrammed . | . . . Reused . | . . . Traps Extracted . | . . . Installed . | . . . Triggered . | . . . Machines | -11 -10 -9 ---------- Run | Yrd Mat Mat Machines Disabled 1 | . . 1 Max in Single Turn 1 | . . 1 Machines Repaired . | . . . Machines Dismantled . | . . . Machines Sabotaged . | . . . Overloaded Fab Kills . | . . . Hacking | -11 -10 -9 --------- Run | Yrd Mat Mat Machines Accessed 2 | . 2 . Terminals 2 | . 2 . Fabricators . | . . . Repair Stations . | . . . Recycling Units . | . . . Scanalyzers . | . . . Garrison Access . | . . . Total Hacks 2 | . 2 . Successful 2 | . 2 . Failed . | . . . Catastrophic . | . . . Database Lockouts . | . . . Manual . | . . . Terminals 2 | . 2 . Fabricators . | . . . Repair Stations . | . . . Recycling Units . | . . . Scanalyzers . | . . . Garrison Access . | . . . Terminal Hacks 2 | . 2 . Alert Level 1 | . 1 . Zone Layout 1 | . 1 . Fabricator Hacks . | . . . Repair Station Hacks . | . . . Recycling Unit Hacks . | . . . Scanalyzer . | . . . Garrison Access Hacks . | . . . Unauthorized Hacks . | . . . Terminals . | . . . Fabricators . | . . . Repair Stations . | . . . Recycling Units . | . . . Scanalyzers . | . . . Garrison Access . | . . . Data Cores Recovered . | . . . Used . | . . . Hacking Detections . | . . . Full Trace Events . | . . . Feedback Events . | . . . Feedback Blocked . | . . . Robot Schematics Acquired . | . . . Robots Built . | . . . Authchips . | . . . Time . | . . . Total Robot Build Rating . | . . . Part Schematics Acquired . | . . . Parts Built . | . . . Authchips . | . . . Time . | . . . Total Part Build Rating . | . . . Parts Repaired . | . . . Time . | . . . Parts Recycled . | . . . Recycled Matter . | . . . Retrieved Matter . | . . . Retrieved Components . | . . . Parts Scanalyzed . | . . . Part Schematics Acquired . | . . . Parts Damaged . | . . . Bothacking | -11 -10 -9 ------------ Run | Yrd Mat Mat Used RIF Installer . | . . . Robots Hacked . | . . . Non-combat . | . . . Combat . | . . . Robot Hacks Applied . | . . . Relay Couplers Released . | . . . Fabnet Peak Effective % . | . . . Robots Rewired . | . . . Allies Hacked . | . . . Hacks Repelled . | . . . Allies | -11 -10 -9 -------- Run | Yrd Mat Mat Total Allies . | . . . Largest Group . | . . . Highest-Rated Group . | . . . Highest-Rated Ally . | . . . Total Orders . | . . . Ally Attacks . | . . . Total Damage . | . . . Kills . | . . . Allies Corrupted . | . . . Allies Melted . | . . . Intel | -11 -10 -9 ------- Run | Yrd Mat Mat Robot Analysis Total . | . . . Derelict Logs Recovered . | . . . Drone Launches . | . . . Drone Recoveries . | . . . Exploration | -11 -10 -9 ------------- Run | Yrd Mat Mat Turns Passed 804 | 54 416 334 Spaces Moved 262 | 34 154 74 Core 11 | 11 . . Treads 251 | 23 154 74 Legs . | . . . Wheels . | . . . Hover . | . . . Flight . | . . . Fastest Speed 50 | 50 160 240 Average Speed 235 | 124 223 309 Slowest Speed 320 | 160 240 320 Overloaded Moves . | . . . Propulsion Burnouts . | . . . Robots Hopped . | . . . Cave-ins Triggered . | . . . Exploration Rate (%) 15 | 4 27 16 Regions Visited 2 Branch Regions . Pre-discovered Areas . | . . . Known Exits Taken . | . . . Unknown Exits Taken 2 | 1 1 . Scrap Searched . | . . . Spaces Dug . | . . . Terrain Destroyed 37 | . . 37 Melee . | . . . Projectile . | . . . AOE 37 | . . 37 Terrain Rammed . | . . . Walls Destroyed . | . . . Machines Disabled . | . . . Actions | -11 -10 -9 --------- Run | Yrd Mat Mat Total 364 | 46 187 131 Wait 29 | . 6 23 Move 260 | 33 153 74 Hop . | . . . Pick Up 15 | 7 6 2 Fast Attach . | . . . Attach 9 | 6 1 2 Detach . | . . . Swap 4 | . . 4 Drop 2 | . 1 1 Fire 45 | . 20 25 Melee . | . . . Ram . | . . . Kick . | . . . Crush . | . . . Escape Stasis . | . . . Rewire . | . . . Trap . | . . . Miscellaneous . | . . . Route ------- -11/Scrapyard -10/Materials (discovered 2 exits: [*Mat] / [*Min]) -9/Materials History --------- Turn | Location | Event 4 | -11/Scrapyard | Discovered new exit (range 15) 55 | -11/Scrapyard | Entered Materials 308 | -10/Materials | Build established: Mutant 380 | -10/Materials | Discovered new exit (range 16) 390 | -10/Materials | Discovered new exit (range 12) 471 | -10/Materials | Entered another Materials area 471 | -9/Materials | Evolved 2 slots: Propulsion x1, Utility x1 805 | -9/Materials | Self-destructed Last Messages --------------- 00781_ R-06 Scavenger collects Flight Unit. 00783_ K-01 Serf collects debris. 00784_ The unstable cave ceiling collapses. 00787_ K-01 Serf collects debris. 00788_ U-05 Engineer lays Concrete. 00793_ G-34 Mercenary destroyed. 00793_ U-05 Engineer builds a Wall. 00794_ U-05 Engineer lays Concrete. 00798_ A-02 Transporter suffers critical hit (Destroy). 00798_ A-02 Transporter destroyed. 00799_ U-05 Engineer builds a Wall. 00799_ U-05 Engineer lays Concrete. 00802_ R-06 Scavenger collects Sml. Laser. 00802_ U-05 Engineer lays Concrete. 00802_ R-06 Scavenger collects Heat Sink. 00803_ Acquired Lgt. Treads. 00803_ U-05 Engineer builds a Wall. 00803_ K-01 Serf collects debris. 00805_ U-05 Engineer lays Concrete. Map ----- +----------------------------------------------------+ | ?????????????????????????????????????????????????? | | ?????????????????????????????????????????????????? | | ?????????????????????????????????????????????????? | | ?????????????????????????????????????????????????? | | ?????????????????????????????????????????????????? | | ?????????????????????????????????????????????????? | | ?????????????????????????????????????????????????? | | ?????????????????????????????????????????????????? | | ?????????????????????????????????????????????????? | | ?????????????????????????????????????????????????? | | ??????????????????????? ????????????????????????? | | ????????????????????? ????????????????????????? | | ????????????????????? ????????????????????????? | | ?????????????????????# =#???????????????????????? | | ????????????????? ???# %!#??????????????????????? | | ?????????????##?#+???#r% #??????????????????????? | | ???????????? ? ?? r #??????????????????????? | | ???????????? ## ###########????????????? | | ????????????? # #????????????? | | ??????????? # #????????????? | | ???????????? + +????????????? | | ???????????k ? # #????????????? | | ???????????? # #????????????? | | ???????????????? # #????????????? | | ???????????????????# ##???????????? | | ???????????????????# @ =u ????????? | | ?????????????????#### u !!! ????????? | | ##########?????######u w!%! """ """ ""?????????? | | #?????# u !!! """ """?????????????? | | ####### "" """ "???????????????? | | + ????????????????? | | ### ?????????????? | | #?# ####??????????????? | | #?# ########+#### #?????????????????? | | #?# #???????????? +?????????????????? | | #?# #???????????? #?????????????????? | | ####+#####?# #???????????? #?????????????????? | | % #????# #????????????? #?????????????????? | | #????# #????????????? #?????????????????? | | #????# #????????????? ?+?????????????????? | | #### ##????# #?????????????????????????????????? | | ???# #?????# #?????????????????????????????????? | | ?# ?????# #?????????????????????????????????? | | !## # ????# #?????????????????????????????????? | | !### ##????# #?????????????????????????????????? | | ##?# #?????? ??????????????????????????????????? | | ???? #???????????????????????????????????????????? | | ???? ????????????????????????????????????????????? | | ???? ????????????????????????????????????????????? | | ???? ????????????????????????????????????????????? | +----------------------------------------------------+ Best States ------------- Heat Dissipation 28 Energy Generation 10 Energy Capacity 125 Matter Stores 300 Matter Capacity 300 Sight Range 16 Terrain Scan Density 10 Evasion (%) 50 Recoil Reduction 2 Item Schematics ----------------- None Robot Schematics ------------------ None Fabricated ------------ Nothing Alien Tech Used ----------------- None Achievements -------------- None Challenges ------------ None Game ------ Seed ReactionNetworkFlightbrick Manual? 0 Play Time 00:05:25 Cumulative 89.4 hours Start 2024.04.14 @ 00:39:15 End 2024.04.14 @ 00:43:05 Sessions 1 Manual Loads 0 Difficulty Rogue Special Mode None Game No. 111 Rogue 111 Adventurer 0 Explorer 0 Win Type - Total 1 Types 1/0/0/0/0/0/0/0/0 Lore% 42 Gallery% 48 Achievement% 45 Wizard Run 0 Options --------- Layout 1 ASCII 0 Keyboard 0 Movement Mouse Keybinds 0 Fullscreen 2 Font 32/Smallcaps Map View 50x40 Zoom Use 0% Tactical HUD 1 Map Filters NONE Filters NONE Steam 1 RUN: ab1223cd-82fc-499f-8afa-10bf20feb5cf